Cogmind - Beta 11.1 @@@ ROGUE MODE // 2022.12.18 @ 14:09:19 Player: QQQQ Result: Self-destructed Performance ------------- Evolutions (3) 1500 Regions Visited (7) 1400 Robots Destroyed (34) 170 Value Destroyed (744) 744 Prototype IDs (5) 100 Alien Tech Used (0) 0 Bonus (0) 0 TOTAL SCORE: 3914 Bonus ------- None Cogmind --------- Core Integrity 651/700 Matter 246/300 Energy 20/100 System Corruption 0% Temperature Cool (0) Movement Walking (130) Location -7/Factory Parts ------- > --- POWER (1) -------- (None) > --- PROPULSION (4) --- Improved Titanium Leg Improved Titanium Leg Airjet Gravmag System > --- UTILITY (6) ------ Small Storage Unit Weight Redist. System Improved Signal Interpreter Hacking Suite > --- WEAPON (2) ------- Shock Maul > --- INVENTORY (8) ---- Wheel Medium Storage Unit Makeshift Transmission Jammer Advanced Beam Rifle Advanced Beam Rifle Scatter Rocket Array Katana Peak State ------------ > --- POWER ------------ Light Ion Engine > --- PROPULSION ------- Airjet Gravmag System Improved VTOL Module Improved VTOL Module > --- UTILITY ---------- Small Storage Unit Weight Redist. System Improved Signal Interpreter Improved Light Armor Plating Hacking Suite > --- WEAPON ----------- Shock Maul > --- INVENTORY -------- Wheel Medium Storage Unit Makeshift Transmission Jammer Advanced Beam Rifle Advanced Beam Rifle Scatter Rocket Array Katana [Rating: 36] Favorites ----------- Power Light Ion Engine Engine Light Ion Engine Propulsion Titanium Leg Leg Titanium Leg Wheel Wheel Hover Unit Airjet Flight Unit Improved VTOL Module Utility Hardened Light Armor Plating Device Heat Sink Storage Medium Storage Unit Processor Improved Signal Interpreter Hackware Hacking Suite Protection Hardened Light Armor Plating Weapon Spread Laser Energy Gun Spread Laser Energy Cannon Heavy Particle Cannon Ballistic Gun Minigun Special Weapon Plasma Cutter Impact Weapon Shock Maul Slashing Weapon Katana Build | -11 -10 -10 -10 -9 -8 -8 -7 ------- Run | Scr Mat Min Exi Min Mat Sto Fac Slots Evolved 6 | . . . . . 4 . 2 Power . | . . . . . . . . Propulsion 2 | . . . . . 1 . 1 Utility 4 | . . . . . 3 . 1 Weapon . | . . . . . . . . Parts Attached 47 | 6 11 4 . . 18 4 4 Power 4 | 1 . . . . 3 . . Engine 4 | 1 . . . . 3 . . Core . | . . . . . . . . Reactor . | . . . . . . . . Propulsion 17 | 2 2 2 . . 6 1 4 Treads . | . . . . . . . . Leg 8 | 2 2 2 . . . . 2 Wheel 2 | . . . . . 2 . . Hover 3 | . . . . . 1 . 2 Flight 4 | . . . . . 3 1 . Utility 12 | 1 2 1 . . 6 2 . Device 4 | . . . . . 3 1 . Storage 3 | 1 . 1 . . 1 . . Processor 1 | . . . . . 1 . . Hackware 1 | . . . . . 1 . . Protection 3 | . 2 . . . . 1 . Artifact . | . . . . . . . . Weapon 14 | 2 7 1 . . 3 1 . Energy Gun 8 | 2 5 . . . 1 . . Energy Cannon 1 | . . . . . 1 . . Ballistic Gun 1 | . . 1 . . . . . Ballistic Cannon . | . . . . . . . . Launcher . | . . . . . . . . Special Weapon 1 | . 1 . . . . . . Impact Weapon 2 | . 1 . . . . 1 . Slashing Weapon 1 | . . . . . 1 . . Piercing Weapon . | . . . . . . . . Special Melee Weapon . | . . . . . . . . Unidentified Prototypes 3 | . . . . . 2 1 . Parts Lost 7 | . . . . . 3 2 2 Power 2 | . . . . . 1 . 1 Propulsion 2 | . . . . . 1 1 . Utility 2 | . . . . . . 1 1 Weapon 1 | . . . . . 1 . . Highest Loss Streak 2 | . . . . . 2 1 2 To Critical Strikes . | . . . . . . . . Average Slot Usage (%) 91 | . 98 100 100 89 60 86 77 Engine 12 | . 14 14 14 14 4 9 5 Leg 22 | . 28 28 28 28 5 . 6 Flight 3 | . . . . . 11 23 8 Device 2 | . . . . . 10 7 7 Storage 12 | . 14 14 14 14 9 9 7 Hackware 1 | . . . . . 2 9 7 Protection 10 | . 12 14 14 4 . 6 5 Energy Gun 15 | . 27 15 14 14 7 . . Ballistic Gun 6 | . . 12 14 14 . . . Naked Turns . | . . . . . . . . Heaviest Build 27 | 12 19 24 24 24 27 15 14 Greatest Support 46 | 20 20 32 32 32 32 21 46 Greatest Overweight (x) 4 | 2 . . . . 2 4 . Average Overweight (x) . | . . . . . . . . Largest Inventory Capacity 10 | 8 8 10 10 10 10 8 8 Average Capacity 9 | 7 8 9 10 10 8 8 8 Most Carried 10 | 4 8 10 10 10 9 8 8 Average Carried 8 | 2 7 9 9 9 8 7 7 Final Capacity 10 | 8 8 10 10 10 8 8 8 Final Carried 10 | 4 8 10 10 10 8 8 7 Class Distribution -------------------- 92% | Mutant 6% | Sprinter Dominant Class ---------------- Mutant | -10/Materials Mutant | -10/Mines Mutant | -10/Exiles Mutant | -9/Mines Mutant | -8/Materials Sprinter | -8/Storage Mutant | -7/Factory Resources | -11 -10 -10 -10 -9 -8 -8 -7 ----------- Run | Scr Mat Min Exi Min Mat Sto Fac Matter Collected 664 | 235 113 106 . 24 170 16 . Remotely . | . . . . . . . . Salvage Created 643 | . 158 . . 55 324 64 42 Parts 42 | . 26 . . 3 11 1 1 Haulers Intercepted 1 | . 1 . . . . . . Recyclers Shooed . | . . . . . . . . Parts Field Recycled . | . . . . . . . . Retrieved Matter . | . . . . . . . . Parts Self-Destructed . | . . . . . . . . Prevented . | . . . . . . . . Kills | -11 -10 -10 -10 -9 -8 -8 -7 ------- Run | Scr Mat Min Exi Min Mat Sto Fac Combat Hostiles Destroyed 21 | . 9 . . 2 7 2 1 Melee 2 | . . . . . . 2 . Guns 18 | . 9 . . 2 7 . . Classes Destroyed 10 | . 5 . . 2 2 . 1 Worker 3 | . 1 . . . 2 . . Builder 1 | . 1 . . . . . . Tunneler 1 | . . . . . 1 . . Hauler 1 | . 1 . . . . . . Operator 2 | . . . . . 1 1 . Watcher 5 | . 3 . . . 1 1 . Swarmer 11 | . 9 . . . . 2 . Grunt 8 | . . . . 1 7 . . Duelist 1 | . . . . 1 . . . Sentry 1 | . . . . . . . 1 Best Kill Streak 7 | . 5 . . 2 7 4 1 Combat Bots Only 7 | . 3 . . 2 7 2 1 Max Kills in Single Turn 2 | . 2 . . 1 1 1 1 Gunslinging . | . . . . . . . . Exploded . | . . . . . . . . Melee 1 | . . . . . . 1 . Uniques/NPCs Destroyed . | . . . . . . . . Combat | -11 -10 -10 -10 -9 -8 -8 -7 -------- Run | Scr Mat Min Exi Min Mat Sto Fac Damage Taken 1304 | . 135 . . 130 507 273 259 Core 246 | . 22 . . 10 135 30 49 Absorbed by Shields . | . . . . . . . . Core Remaining (%) 85 | 100 . . . 87 . 70 . Volleys Fired 52 | . 30 . . 6 16 . . Largest 2 | . 2 . . 2 2 . . Hottest 130 | . 130 . . 90 130 . . Shots Fired 99 | . 55 . . 12 32 . . Gun 99 | . 55 . . 12 32 . . Cannon . | . . . . . . . . Launcher . | . . . . . . . . Special . | . . . . . . . . Kinetic 6 | . . . . 6 . . . Thermal 93 | . 55 . . 6 32 . . Explosive . | . . . . . . . . Electromagnetic . | . . . . . . . . Robot Hit Streak 11 | . 11 . . 9 9 . . Robot Miss Streak 15 | . 15 . . 3 3 . . Penetration Max . | . . . . . . . . Secondary Targets 3 | . . . . . 3 . . Max Gunslinging Chain 1 | . . . . . 1 . . Shots Hit Robots 96 | . 42 . . 11 37 4 2 Core Hits 113 | . 42 . . 11 60 . . Critical Kills . | . . . . . . . . Critical Parts Destroyed 5 | . . . . . . 3 2 Critical Strikes 5 | . . . . . . 3 2 Smash 5 | . . . . . . 3 2 Melee Attacks 23 | . 1 . . . 6 13 3 Impact 17 | . 1 . . . . 13 3 Slashing 6 | . . . . . 6 . . Piercing . | . . . . . . . . Sneak Attacks 4 | . . . . . 4 . . Combat Hostiles . | . . . . . . . . Follow-up Attacks . | . . . . . . . . Damage Inflicted 1839 | . 466 . . 194 836 267 76 Guns 1112 | . 398 . . 194 520 . . Cannons . | . . . . . . . . Explosions 68 | . 68 . . . . . . Melee 659 | . . . . . 316 267 76 Ramming . | . . . . . . . . Kinetic 89 | . . . . 89 . . . Thermal 1091 | . 466 . . 105 520 . . Explosive . | . . . . . . . . Electromagnetic . | . . . . . . . . Impact 343 | . . . . . . 267 76 Slashing 316 | . . . . . 316 . . Piercing . | . . . . . . . . Highest Corruption . | . . . . . . . . Average Corruption . | . . . . . . . . Corruption Purged . | . . . . . . . . Corruption Blocked . | . . . . . . . . Overload Shots . | . . . . . . . . Overflow Damage 403 | . 28 . . . 54 245 76 Projectiles . | . . . . . . . . Explosions 28 | . 28 . . . . . . Melee 375 | . . . . . 54 245 76 Knockbacks 1 | . . . . . . 1 . Impact 1 | . . . . . . 1 . Kinetic . | . . . . . . . . Secondary . | . . . . . . . . Self-Inflicted Damage . | . . . . . . . . Shots . | . . . . . . . . Rammed . | . . . . . . . . Targets Rammed . | . . . . . . . . Kicked . | . . . . . . . . Crushed . | . . . . . . . . Highest Temperature 551 | . 551 . . 253 340 5 . Average Temperature 140 | . 143 . . 131 138 5 . Received Heat Transfer 534 | . . . . 18 351 99 66 Effects 7 | . 7 . . . . . . Shutdowns 2 | . 2 . . . . . . Interference 2 | . 2 . . . . . . Matter Decay 1 | . 1 . . . . . . Short Circuit 1 | . 1 . . . . . . Damage (minor) 1 | . 1 . . . . . . Siege Activations . | . . . . . . . . Robots Corrupted . | . . . . . . . . Combat Hostiles . | . . . . . . . . Parts Fried 4 | . . . . . . 3 1 Impact Corruptions 8 | . . . . . . 6 2 Robots Melted . | . . . . . . . . Combat Hostiles . | . . . . . . . . Parts Melted 3 | . 2 . . . 1 . . Heat Transferred 1335 | . 555 . . 115 665 . . Parts Sabotaged . | . . . . . . . . Parts Stolen . | . . . . . . . . Parts Stripped . | . . . . . . . . Power Chain Reactions . | . . . . . . . . Missiles Intercepted . | . . . . . . . . Alert | -11 -10 -10 -10 -9 -8 -8 -7 ------- Run | Scr Mat Min Exi Min Mat Sto Fac Peak Influence 285 | . 285 95 . 50 155 176 79 Initial 85 | . . 85 . . 19 33 79 Average 78 | . 123 65 . 32 67 94 12 Maximum Alert Level 1 | . 1 . . . . . . Low Security (%) 89 | 100 64 100 . 100 100 100 100 Level 1 10 | . 35 . . . . . . Level 2 . | . . . . . . . . Level 3 . | . . . . . . . . Level 4 . | . . . . . . . . Level 5 . | . . . . . . . . High Security . | . . . . . . . . Max Security . | . . . . . . . . Squads Dispatched 5 | . . 1 . . 1 3 . Investigation 2 | . . 1 . . . 1 . Extermination . | . . . . . . . . Reinforcement 3 | . . . . . 1 2 . Assault . | . . . . . . . . Garrison . | . . . . . . . . Intercept . | . . . . . . . . Searches Triggered . | . . . . . . . . Construction Impeded . | . . . . . . . . Haulers Reinforced . | . . . . . . . . Active Scanning Responses . | . . . . . . . . Cargo Convoy Interrupts . | . . . . . . . . Stealth | -11 -10 -10 -10 -9 -8 -8 -7 --------- Run | Scr Mat Min Exi Min Mat Sto Fac Distress Signals 6 | . 3 . . . 2 1 . Communications Jammed 13 | . . . . . 13 . . Distress Signals 13 | . . . . . 13 . . Times Spotted 67 | . 17 . . 3 16 30 1 Peak Tracking Total 22 | . 4 . . 3 6 22 1 Tactical Retreats 2 | . 1 . . . . 1 . Traps | -11 -10 -10 -10 -9 -8 -8 -7 ------- Run | Scr Mat Min Exi Min Mat Sto Fac Traps Triggered . | . . . . . . . . Indirectly . | . . . . . . . . Trap Hack Attempts . | . . . . . . . . Triggered . | . . . . . . . . Disarmed . | . . . . . . . . Reprogrammed . | . . . . . . . . Reused . | . . . . . . . . Traps Extracted . | . . . . . . . . Installed . | . . . . . . . . Triggered 1 | . . 1 . . . . . Machines | -11 -10 -10 -10 -9 -8 -8 -7 ---------- Run | Scr Mat Min Exi Min Mat Sto Fac Machines Disabled 2 | . 2 . . . . . . Max in Single Turn 2 | . 2 . . . . . . Machines Sabotaged . | . . . . . . . . Garrisons Compromised . | . . . . . . . . Overloaded Fab Kills . | . . . . . . . . Hacking | -11 -10 -10 -10 -9 -8 -8 -7 --------- Run | Scr Mat Min Exi Min Mat Sto Fac Machines Accessed 15 | . 5 1 2 . 1 5 1 Terminals 12 | . 5 . . . 1 5 1 Fabricators . | . . . . . . . . Repair Stations . | . . . . . . . . Recycling Units . | . . . . . . . . Scanalyzers . | . . . . . . . . Garrison Access . | . . . . . . . . Total Hacks 42 | . 12 1 12 . 4 8 5 Successful 29 | . 5 1 12 . 3 5 3 Failed 13 | . 7 . . . 1 3 2 Catastrophic 2 | . 1 . . . . 1 . Database Lockouts . | . . . . . . . . Manual 25 | . 12 . . . 4 3 6 Terminals 29 | . 12 . . . 4 8 5 Fabricators . | . . . . . . . . Repair Stations . | . . . . . . . . Recycling Units . | . . . . . . . . Scanalyzers . | . . . . . . . . Garrison Access . | . . . . . . . . Terminal Hacks 28 | . 5 1 12 . 3 5 2 Record 14 | . . . 12 . . 2 . Robot Analysis 3 | . 3 . . . . . . Prototype ID Bank 1 | . . . . . 1 . . Open Door 4 | . . 1 . . . 3 . Branch Access Points 3 | . 1 . . . 1 . 1 Unreport Threat 2 | . . . . . 1 . 1 Locate Traps 1 | . 1 . . . . . . Fabricator Hacks . | . . . . . . . . Repair Station Hacks . | . . . . . . . . Recycling Unit Hacks . | . . . . . . . . Scanalyzer . | . . . . . . . . Garrison Access Hacks . | . . . . . . . . Unauthorized Hacks 1 | . . . . . . . 1 Terminals 1 | . . . . . . . 1 Botnet 1 | . . . . . . . 1 Fabricators . | . . . . . . . . Repair Stations . | . . . . . . . . Recycling Units . | . . . . . . . . Scanalyzers . | . . . . . . . . Garrison Access . | . . . . . . . . Data Cores Recovered . | . . . . . . . . Used . | . . . . . . . . Hacking Detections 11 | . 4 . . . 1 5 1 Full Trace Events 1 | . . . . . . 1 . Feedback Events . | . . . . . . . . Feedback Blocked . | . . . . . . . . Robot Schematics Acquired . | . . . . . . . . Robots Built . | . . . . . . . . Authchips . | . . . . . . . . Time . | . . . . . . . . Total Robot Build Rating . | . . . . . . . . Part Schematics Acquired . | . . . . . . . . Parts Built . | . . . . . . . . Authchips . | . . . . . . . . Time . | . . . . . . . . Total Part Build Rating . | . . . . . . . . Parts Repaired . | . . . . . . . . Time . | . . . . . . . . Parts Recycled . | . . . . . . . . Recycled Matter . | . . . . . . . . Retrieved Matter . | . . . . . . . . Retrieved Components . | . . . . . . . . Parts Scanalyzed . | . . . . . . . . Part Schematics Acquired . | . . . . . . . . Parts Damaged . | . . . . . . . . Bothacking | -11 -10 -10 -10 -9 -8 -8 -7 ------------ Run | Scr Mat Min Exi Min Mat Sto Fac Used RIF Installer . | . . . . . . . . Robots Hacked . | . . . . . . . . Non-combat . | . . . . . . . . Combat . | . . . . . . . . Robot Hacks Applied . | . . . . . . . . Relay Couplers Released . | . . . . . . . . Fabnet Peak Effective % . | . . . . . . . . Robots Rewired . | . . . . . . . . Allies Hacked . | . . . . . . . . Hacks Repelled . | . . . . . . . . Allies | -11 -10 -10 -10 -9 -8 -8 -7 -------- Run | Scr Mat Min Exi Min Mat Sto Fac Total Allies 1 | . . . . 1 . . . Largest Group 1 | . . . . 1 1 . . Highest-Rated Group 31 | . . . . 31 31 . . Highest-Rated Ally 31 | . . . . 31 31 . . Total Orders . | . . . . . . . . Ally Attacks 5 | . . . . . 5 . . Total Damage 86 | . . . . . 86 . . Kills . | . . . . . . . . Allies Corrupted . | . . . . . . . . Allies Melted . | . . . . . . . . Intel | -11 -10 -10 -10 -9 -8 -8 -7 ------- Run | Scr Mat Min Exi Min Mat Sto Fac Robot Analysis Total 3 | . 3 . . . . . . Derelict Logs Recovered 4 | . . 3 . 1 . . . Drone Launches . | . . . . . . . . Drone Recoveries . | . . . . . . . . Exploration | -11 -10 -10 -10 -9 -8 -8 -7 ------------- Run | Scr Mat Min Exi Min Mat Sto Fac Turns Passed 2432 | 56 547 566 530 143 362 159 69 Spaces Moved 1906 | 39 326 426 422 95 224 286 88 Core 9 | 8 . . . . . 1 . Treads . | . . . . . . . . Legs 1335 | 31 326 426 422 95 24 . 11 Wheels 151 | . . . . . 115 36 . Hover 139 | . . . . . 82 . 57 Flight 272 | . . . . . 3 249 20 Fastest Speed 29 | 50 120 120 125 125 60 29 32 Average Speed 102 | 112 120 124 125 125 82 38 59 Slowest Speed 250 | 150 120 125 125 125 175 250 130 Overloaded Moves . | . . . . . . . . Propulsion Burnouts . | . . . . . . . . Robots Hopped . | . . . . . . . . Cave-ins Triggered . | . . . . . . . . Exploration Rate (%) 46 | 3 52 91 90 27 24 79 3 Regions Visited 7 Branch Regions 4 Pre-discovered Areas 2 | . . 1 1 . . . . Known Exits Taken 4 | . 1 . 1 . 1 1 . Unknown Exits Taken 3 | 1 . 1 . 1 . . . Scrap Searched 2 | . . 1 . 1 . . . Spaces Dug 10 | . 1 . . . . 9 . Terrain Destroyed 20 | . 11 . . . . 9 . Melee 10 | . 1 . . . . 9 . Projectile . | . . . . . . . . AOE 10 | . 10 . . . . . . Terrain Rammed . | . . . . . . . . Walls Destroyed . | . . . . . . . . Machines Disabled . | . . . . . . . . Actions | -11 -10 -10 -10 -9 -8 -8 -7 --------- Run | Scr Mat Min Exi Min Mat Sto Fac Total 2234 | 48 428 461 425 109 358 308 97 Wait 146 | . 37 25 . 7 77 . . Move 1899 | 38 325 425 421 94 223 285 88 Hop . | . . . . . . . . Pick Up 30 | 4 12 3 2 1 6 2 . Fast Attach 21 | 6 1 1 . . 7 3 3 Attach 9 | . 1 . . . 6 1 1 Detach 3 | . . . . . 2 1 . Swap 18 | . 9 3 . . 6 . . Drop 33 | . 12 4 2 1 9 3 2 Fire 52 | . 30 . . 6 16 . . Melee 23 | . 1 . . . 6 13 3 Ram . | . . . . . . . . Kick . | . . . . . . . . Crush . | . . . . . . . . Escape Stasis . | . . . . . . . . Rewire . | . . . . . . . . Trap . | . . . . . . . . Miscellaneous . | . . . . . . . . Route ------- -11/Scrapyard -10/Materials (discovered 3 exits: [*Mat] / *Min x2) -10/Mines (discovered 2 exits: [*Mat] / *Exi) -10/Exiles (discovered 2 exits: *Min x2) -9/Mines -8/Materials -8/Storage -7/Factory (discovered 2 exits: Low x2) History --------- Turn | Location | Event 7 | -11/Scrapyard | Discovered new exit (range 16) 57 | -11/Scrapyard | Entered Materials 318 | -10/Materials | Build established: Mutant 369 | -10/Materials | Identified exit to Mines 555 | -10/Materials | Discovered new exit (range 3) 604 | -10/Materials | Entered Mines 650 | -10/Mines | Met a Derelict shopkeep closing up shop 815 | -10/Mines | Received a Rocket Launcher from a helpful Derelict 830 | -10/Mines | Discovered new exit (range 15) 1103 | -10/Mines | Learned location of Mines (-9) 1165 | -10/Mines | Deemed a non-threat by the Exiles lab entrance 1165 | -10/Mines | Discovered new exit (range 5) 1170 | -10/Mines | Entered Exiles 1170 | -10/Exiles | Found Exiles lab destroyed 1171 | -10/Exiles | Identified exit to Mines 1471 | -10/Exiles | Learned location of Zion (-6) 1700 | -10/Exiles | Entered Mines 1830 | -9/Mines | Discovered new exit (range 8) 1833 | -9/Mines | Received a Mining Laser from a helpful Derelict 1843 | -9/Mines | Entered Materials 1843 | -8/Materials | Accompanied by 1 ally 1843 | -8/Materials | Evolved 4 slots: Propulsion x1, Utility x3 1844 | -8/Materials | Identified exit to Storage 1986 | -8/Materials | Destroyed 7 combat bots 2205 | -8/Materials | Entered Storage 2230 | -8/Storage | Found Prototype Launcher 2361 | -8/Storage | Discovered new exit (range 9) 2363 | -8/Storage | Identified exit to Factory 2364 | -8/Storage | Entered Factory 2364 | -7/Factory | Evolved 2 slots: Propulsion x1, Utility x1 2365 | -7/Factory | Identified exit to Lower Caves 2433 | -7/Factory | Self-destructed Last Messages --------------- 02406_ Acquired Imp. Titanium Leg. 02410_ ALERT: All DSF locations entering lockdown mode. 02416_ Lgt. Ion Engine destroyed. 02419_ Fusion Modulator explodes. 02419_ Imp. Light Armor Plating destroyed. 02419_ Terminal disabled. 02421_ Y-54 Guardian suffers critical hit (Smash). 02421_ Destroyed Imp. Heat Sink. 02421_ Y-54 Guardian system corrupted by crushing effect. 02424_ Y-54 Guardian suffers critical hit (Smash). 02424_ Destroyed Imp. Heat Sink. 02424_ Y-54 Guardian system corrupted by crushing effect. 02425_ Y-54 Guardian system terminally corrupted. 02425_ Gatling Laser fried. 02427_ K-01 Serf latches onto G-47 Trooper. 02427_ K-01 Serf pushes G-47 Trooper. 02427_ K-01 Serf collects debris. 02428_ K-01 Serf pushes G-47 Trooper. 02431_ K-01 Serf collects debris. 02432_ K-01 Serf pushes G-47 Trooper. Map ----- +----------------------------------------------------+ | ?????????????????????????????????????????????????? | | ?????????????????????????????????????????????????? | | ?????????????????????????????????????????????????? | | ?????????????????????????????????????????????????? | | ?????????????????????????????????????????????????? | | ?????????????????????????????????????????????????? | | ?????????????????????????????????????????????????? | | ?????????????????????????????????????????????????? | | ?????????????????????????????????????????????????? | | ?????????????????????????????????????????????????? | | ?????????????????????????????????????????????????? | | ?????????????????????????????????????????????????? | | ?????????????????????????????????????????????????? | | ????????????????????????????????? #??????????????? | | ????????????????????????????????? #??????????????? | | ?????????????????????########???? #??????????????? | | ?????????????????????# ] !##??? #??????????????? | | ????????????????????## ##?? #??????????????? | | ????????????????????#; ;;#?? #??????????????? | | ????????????????????#; [; #?? #??????????????? | | ???????????????????##; %;;### #??????????????? | | ???????????????????# ; ; k #??????????????? | | ???????????+###+####;; ; #??????????????? | | ?????????? ;; k ; #??????????????? | | ?????????? ;;g r; ##############?? | | ????????????"" """ ; @ ; # #?? | | ?????????????" """ #; ; # """ """ #?? | | ???????????""" """ ?## # # """ """ #?? | | ??????????? ?# # # """ """ #?? | | ?????????? = #####+### # #?? | | ?????????? = # """ """ #?? | | ??????????????# + """ """ #?? | | ??????????????# # """ """ #?? | | ??????????????# # #?? | | ??????????????# # #?? | | ??????????????######## ######## "T" #?? | | ?????????????????????# # # """ #?? | | ?????????????????????# # ##############?? | | ?????????????????????# + #??????????????? | | ?????????????????????# # #??????????????? | | ?????????????????????# # #??????????????? | | ?????????????????????# # #??????????????? | | ?????????????????????# # #??????????????? | | ?????????????????????# # #??????????????? | | ?????????????????????# # #??????????????? | | ?????????????????????# # #??????????????? | | ?????????????????????# # #??????????????? | | ?????????????????????# # #??????????????? | | ?????????????????????# # #??????????????? | | ?????????????????????# # #??????????????? | +----------------------------------------------------+ Best States ------------- Heat Dissipation 41 Energy Generation 10 Energy Capacity 250 Matter Stores 300 Matter Capacity 300 Sight Range 16 Terrain Scan Density 10 Jamming Range 14 Additional Mass Support 6 Armor Coverage 150 Evasion (%) 64 Particle Charging 15 Offensive Hacking 10 Item Schematics ----------------- None Robot Schematics ------------------ None Fabricated ------------ Nothing Alien Tech Used ----------------- None Achievements -------------- Total Silence Challenges ------------ None Game ------ Seed AerolevMolecularCore Manual? 0 Play Time 00:50:26 Cumulative 36.2 hours Start 2022.12.18 @ 12:52:11 End 2022.12.18 @ 14:09:19 Sessions 3 Manual Loads 0 Difficulty Rogue Special Mode None Game No. 25 Rogue 25 Adventurer 0 Explorer 0 Win Type - Total 0 Types 0/0/0/0/0/0/0/0/0 Lore% 34 Gallery% 31 Achievement% 30 Wizard Run 0 Options --------- ASCII 0 Keyboard 0 Movement Mouse Keybinds 0 Fullscreen 2 Font 18/TerminusBold Map View 76x50 Tactical HUD 1 Map Filters NONE Filters NONE Steam 1 RUN: 4f55c564-f972-4567-ab18-2e14405f0181